Cogmind - Beta 10.2 @@@ ROGUE MODE // 2020.12.16 @ 21:31:54 Player: Cracklepappy Result: Destroyed by S-10 Pest with Light Assault Rifle Performance ------------- Evolutions (2) 1000 Regions Visited (3) 600 Robots Destroyed (12) 60 Value Destroyed (148) 148 Prototype IDs (0) 0 Alien Tech Used (0) 0 Bonus (6) 6 TOTAL SCORE: 1814 Bonus ------- High Alert Combat Kills 6 Cogmind --------- Core Integrity 0/550 Matter 198/300 Energy 92/100 System Corruption 4% Temperature Cool (0) Movement Core (50) Location -8/Materials Parts ------- > --- POWER (1) -------- (None) > --- PROPULSION (5) --- Light Treads > --- UTILITY (3) ------ Advanced Visual Processing Unit Improved Terrain Scan Processor > --- WEAPON (2) ------- (None) > --- INVENTORY (4) ---- EM Pulse Gun Rocket Launcher Peak State ------------ > --- POWER ------------ (None) > --- PROPULSION ------- Advanced Treads > --- UTILITY ---------- Advanced Visual Processing Unit > --- WEAPON ----------- Scythe > --- INVENTORY -------- EM Pulse Gun Grenade Launcher Rocket Launcher [Rating: 9] Favorites ----------- Power Ion Engine Engine Ion Engine Propulsion Light Treads Treads Light Treads Utility Advanced Visual Processing Unit Processor Advanced Visual Processing Unit Weapon Light Assault Rifle Energy Gun Small Laser Ballistic Gun Light Assault Rifle Launcher Grenade Launcher Slashing Weapon Scythe Build | -11 -10 -9 -8 ------- Run | Scr Mat Mat Mat Slots Evolved 4 | . . 2 2 Power . | . . . . Propulsion 3 | . . 1 2 Utility 1 | . . 1 . Weapon . | . . . . Parts Attached 15 | 5 2 . 8 Power 1 | 1 . . . Engine 1 | 1 . . . Core . | . . . . Reactor . | . . . . Propulsion 5 | 2 . . 3 Treads 5 | 2 . . 3 Leg . | . . . . Wheel . | . . . . Hover . | . . . . Flight . | . . . . Utility 2 | . . . 2 Device . | . . . . Storage . | . . . . Processor 2 | . . . 2 Hackware . | . . . . Protection . | . . . . Artifact . | . . . . Weapon 7 | 2 2 . 3 Energy Gun 2 | 1 1 . . Energy Cannon . | . . . . Ballistic Gun 1 | 1 . . . Ballistic Cannon . | . . . . Launcher 3 | . 1 . 2 Special Weapon . | . . . . Impact Weapon . | . . . . Slashing Weapon 1 | . . . 1 Piercing Weapon . | . . . . Special Melee Weapon . | . . . . Unidentified Prototypes . | . . . . Parts Lost 8 | . . 4 4 Power . | . . . . Propulsion 4 | . . 2 2 Utility . | . . . . Weapon 4 | . . 2 2 Highest Loss Streak 3 | . . 3 2 Average Slot Usage (%) 29 | . 57 32 21 Treads 13 | . 28 18 6 Processor 5 | . . . 10 Energy Gun 2 | . 11 3 . Ballistic Gun 5 | . 14 9 . Launcher 1 | . 2 . 1 Slashing Weapon 1 | . . . 3 Naked Turns 48 | . . 24 24 Heaviest Build 4 | 3 4 2 3 Greatest Support 22 | 3 3 3 22 Greatest Overweight (x) 1 | . 1 . . Average Overweight (x) . | . . . . Largest Inventory Capacity 4 | 4 4 4 4 Average Capacity 4 | 4 4 4 4 Most Carried 3 | 1 2 3 3 Average Carried 2 | . 1 2 2 Final Capacity 4 | 4 4 4 4 Final Carried 3 | 1 2 3 2 Class Distribution -------------------- 100% | Mutant Dominant Class ---------------- Mutant | -10/Materials Mutant | -9/Materials Mutant | -8/Materials Resources | -11 -10 -9 -8 ----------- Run | Scr Mat Mat Mat Matter Collected 299 | 195 . . 104 Remotely . | . . . . Salvage Created 183 | . 18 . 165 Parts 24 | . 3 . 21 Haulers Intercepted . | . . . . Recyclers Shooed . | . . . . Parts Field Recycled . | . . . . Retrieved Matter . | . . . . Parts Self-Destructed . | . . . . Prevented . | . . . . Kills | -11 -10 -9 -8 ------- Run | Scr Mat Mat Mat Combat Hostiles Destroyed 10 | . 3 . 7 Melee 1 | . . . 1 AOE 9 | . 3 . 6 Classes Destroyed 4 | . 1 . 3 Builder 1 | . . . 1 Recycler 1 | . . . 1 Swarmer 9 | . 3 . 6 Grunt 1 | . . . 1 Best Kill Streak 3 | . 3 . 3 Combat Bots Only 3 | . 3 . 3 Max Kills in Single Turn 3 | . 2 . 3 Gunslinging . | . . . . Exploded 3 | . 2 . 3 Melee 1 | . . . 1 Uniques/NPCs Destroyed . | . . . . Combat | -11 -10 -9 -8 -------- Run | Scr Mat Mat Mat Damage Taken 2029 | . 76 687 1266 Core 887 | . 9 321 557 Absorbed by Shields . | . . . . Core Remaining (%) 71 | 100 96 19 . Volleys Fired 10 | . 3 . 7 Largest 1 | . 1 . 1 Hottest 33 | . 30 . 33 Shots Fired 10 | . 3 . 7 Gun . | . . . . Cannon . | . . . . Launcher 10 | . 3 . 7 Special . | . . . . Kinetic . | . . . . Thermal . | . . . . Explosive 10 | . 3 . 7 Electromagnetic . | . . . . Robot Hit Streak 1 | . . . 1 Robot Miss Streak 4 | . . . 4 Penetration Max . | . . . . Secondary Targets . | . . . . Shots Hit Robots 3 | . . . 3 Core Hits 15 | . 4 1 10 Critical Hits . | . . . . Critical Kills . | . . . . Critical Parts Destroyed . | . . . . Melee Attacks 2 | . . . 2 Impact . | . . . . Slashing 2 | . . . 2 Piercing . | . . . . Sneak Attacks 2 | . . . 2 Combat Hostiles . | . . . . Follow-up Attacks . | . . . . Damage Inflicted 796 | . 192 22 582 Guns . | . . . . Cannons . | . . . . Explosions 548 | . 192 . 356 Melee 180 | . . . 180 Ramming 68 | . . 22 46 Kinetic . | . . . . Thermal . | . . . . Explosive 548 | . 192 . 356 Electromagnetic . | . . . . Impact . | . . . . Slashing 180 | . . . 180 Piercing . | . . . . Highest Corruption 4 | . . . 4 Average Corruption 2 | . . . 2 Corruption Purged . | . . . . Effects 3 | . . . 3 Matter Fused 1 | . . . 1 Data Loss (minor) 2 | . . . 2 Overload Shots . | . . . . Overflow Damage 15 | . 6 . 9 Projectiles . | . . . . Explosions 15 | . 6 . 9 Melee . | . . . . Knockbacks . | . . . . Impact . | . . . . Kinetic . | . . . . Secondary . | . . . . Self-Inflicted Damage 111 | . . 9 102 Shots 3 | . . . 3 Rammed 32 | . . 5 27 Targets Rammed 33 | . . 5 28 Kicked . | . . . . Crushed 1 | . . . 1 Highest Temperature . | . . . . Average Temperature . | . . . . Received Heat Transfer 666 | . 12 249 405 Siege Activations . | . . . . Robots Corrupted . | . . . . Combat Hostiles . | . . . . Parts Fried . | . . . . Impact Corruptions . | . . . . Robots Melted . | . . . . Combat Hostiles . | . . . . Parts Melted . | . . . . Heat Transferred . | . . . . Parts Sabotaged . | . . . . Parts Stolen . | . . . . Parts Stripped . | . . . . Power Chain Reactions . | . . . . Missiles Intercepted . | . . . . Alert | -11 -10 -9 -8 ------- Run | Scr Mat Mat Mat Peak Influence 645 | . 100 317 645 Initial 120 | . . 42 120 Average 191 | . 60 173 252 Maximum Alert Level 2 | . . 1 2 Low Security (%) 61 | 100 100 48 58 Level 1 28 | . . 51 20 Level 2 10 | . . . 21 Level 3 . | . . . . Level 4 . | . . . . Level 5 . | . . . . High Security . | . . . . Max Security . | . . . . Squads Dispatched 3 | . 1 2 . Investigation . | . . . . Extermination . | . . . . Reinforcement 3 | . 1 2 . Assault . | . . . . Garrison . | . . . . Intercept . | . . . . Construction Impeded . | . . . . Haulers Reinforced . | . . . . Stealth | -11 -10 -9 -8 --------- Run | Scr Mat Mat Mat Distress Signals 5 | . . 2 3 Communications Jammed . | . . . . Distress Signals . | . . . . Times Spotted 65 | . 6 28 31 Peak Tracking Total 12 | . 3 11 12 Tactical Retreats 7 | . . 3 4 Traps | -11 -10 -9 -8 ------- Run | Scr Mat Mat Mat Traps Triggered 1 | . . . 1 Indirectly . | . . . . Trap Hack Attempts . | . . . . Triggered . | . . . . Disarmed . | . . . . Reprogrammed . | . . . . Reused . | . . . . Traps Extracted . | . . . . Installed . | . . . . Triggered . | . . . . Machines | -11 -10 -9 -8 ---------- Run | Scr Mat Mat Mat Machines Disabled . | . . . . Max in Single Turn . | . . . . Machines Sabotaged . | . . . . Garrisons Compromised . | . . . . Overloaded Fab Kills . | . . . . Fab Network Shutdowns . | . . . . Hacking | -11 -10 -9 -8 --------- Run | Scr Mat Mat Mat Machines Accessed 1 | . . . 1 Terminals 1 | . . . 1 Fabricators . | . . . . Repair Stations . | . . . . Recycling Units . | . . . . Scanalyzers . | . . . . Garrison Access . | . . . . Total Hacks 3 | . . . 3 Successful . | . . . . Failed 3 | . . . 3 Catastrophic 1 | . . . 1 Database Lockouts . | . . . . Manual 3 | . . . 3 Terminals 3 | . . . 3 Fabricators . | . . . . Repair Stations . | . . . . Recycling Units . | . . . . Scanalyzers . | . . . . Garrison Access . | . . . . Terminal Hacks . | . . . . Fabricator Hacks . | . . . . Repair Station Hacks . | . . . . Recycling Unit Hacks . | . . . . Scanalyzer . | . . . . Garrison Access Hacks . | . . . . Unauthorized Hacks . | . . . . Terminals . | . . . . Fabricators . | . . . . Repair Stations . | . . . . Recycling Units . | . . . . Scanalyzers . | . . . . Garrison Access . | . . . . Data Cores Recovered . | . . . . Used . | . . . . Hacking Detections 1 | . . . 1 Full Trace Events . | . . . . Feedback Events . | . . . . Feedback Blocked . | . . . . Robot Schematics Acquired . | . . . . Robots Built . | . . . . Matter . | . . . . Time . | . . . . Total Robot Build Rating . | . . . . Part Schematics Acquired . | . . . . Parts Built . | . . . . Matter . | . . . . Time . | . . . . Total Part Build Rating . | . . . . Parts Repaired . | . . . . Time . | . . . . Parts Recycled . | . . . . Recycled Matter . | . . . . Retrieved Matter . | . . . . Retrieved Components . | . . . . Parts Scanalyzed . | . . . . Part Schematics Acquired . | . . . . Parts Damaged . | . . . . Bothacking | -11 -10 -9 -8 ------------ Run | Scr Mat Mat Mat Used RIF Installer . | . . . . Robots Hacked . | . . . . Non-combat . | . . . . Combat . | . . . . Robot Hacks Applied . | . . . . Relay Couplers Released . | . . . . Robots Rewired . | . . . . Allies Hacked . | . . . . Hacks Repelled . | . . . . Allies | -11 -10 -9 -8 -------- Run | Scr Mat Mat Mat Total Allies . | . . . . Largest Group . | . . . . Highest-Rated Group . | . . . . Highest-Rated Ally . | . . . . Total Orders . | . . . . Ally Attacks . | . . . . Total Damage . | . . . . Kills . | . . . . Allies Corrupted . | . . . . Allies Melted . | . . . . Intel | -11 -10 -9 -8 ------- Run | Scr Mat Mat Mat Robot Analysis Total . | . . . . Derelict Logs Recovered . | . . . . Drone Launches . | . . . . Drone Recoveries . | . . . . Exploration | -11 -10 -9 -8 ------------- Run | Scr Mat Mat Mat Turns Passed 484 | 28 47 170 239 Spaces Moved 765 | 39 70 324 332 Core 764 | 39 70 324 331 Treads 1 | . . . 1 Legs . | . . . . Wheels . | . . . . Hover . | . . . . Flight . | . . . . Fastest Speed 50 | 50 50 50 50 Average Speed 50 | 50 52 50 50 Slowest Speed 145 | 50 100 50 145 Overloaded Moves . | . . . . Propulsion Burnouts . | . . . . Robots Hopped . | . . . . Cave-ins Triggered . | . . . . Exploration Rate (%) 29 | 3 17 44 54 Regions Visited 3 Branch Regions . Pre-discovered Areas . | . . . . Known Exits Taken . | . . . . Unknown Exits Taken 3 | 1 1 1 . Scrap Searched . | . . . . Spaces Dug . | . . . . Terrain Destroyed 96 | . 30 . 66 Melee . | . . . . Projectile . | . . . . AOE 96 | . 30 . 66 Terrain Rammed . | . . . . Walls Destroyed . | . . . . Machines Disabled . | . . . . Actions | -11 -10 -9 -8 --------- Run | Scr Mat Mat Mat Total 827 | 45 75 329 378 Wait . | . . . . Move 762 | 38 69 323 332 Hop . | . . . . Pick Up 3 | 1 1 1 . Fast Attach 11 | 5 . . 6 Attach 2 | . . . 2 Detach 1 | . . . 1 Swap 2 | . 2 . . Drop 1 | 1 . . . Fire 10 | . 3 . 7 Melee 2 | . . . 2 Ram 9 | . . 2 7 Kick . | . . . . Crush 24 | . . 3 21 Escape Stasis . | . . . . Rewire . | . . . . Trap . | . . . . Miscellaneous . | . . . . Route ------- -11/Scrapyard -10/Materials -9/Materials (discovered 2 exits: *Mat / [*Min]) -8/Materials History --------- Turn | Location | Event 6 | -11/Scrapyard | Discovered new exit (range 16) 29 | -11/Scrapyard | Entered Materials 70 | -10/Materials | Discovered new exit (range 12) 76 | -10/Materials | Entered another Materials area 76 | -9/Materials | Evolved 2 slots: Propulsion x1, Utility x1 136 | -9/Materials | Discovered new exit (range 15) 237 | -9/Materials | Core integrity fell below 50% 238 | -9/Materials | Discovered new exit (range 15) 246 | -9/Materials | Entered another Materials area 246 | -8/Materials | Evolved 2 slots: Propulsion x2 253 | -8/Materials | Lost 3 parts (2n1w) 307 | -8/Materials | Build established: Mutant 371 | -8/Materials | Core integrity fell below 50% 386 | -8/Materials | Core integrity fell below 20% 485 | -8/Materials | Destroyed by S-10 Pest with Light Assault Rifle Last Messages --------------- 00400_ Acquired Imp. Terrain Scan Processor. 00405_ Acquired Lgt. Treads. 00424_ W-25 Informer sends out distress signal. 00431_ S-10 Pest destroyed. 00433_ Connecting with Terminal... 00433_ Current location identified: Materials 00435_ Acquired 9 matter. 00436_ Acquired 4 matter. 00438_ Hadron Collector disabled. 00442_ Triggered Shock Trap. 00442_ The floor emits a surge of raw power. 00442_ System corrupted (+2). 00454_ System corrupted: Component data lost. 00460_ S-10 Pest destroyed. 00466_ Grenade Launcher destroyed. 00466_ Destroyed Grenade Launcher. 00473_ T-07 Excavator is excavating. 00476_ System corrupted: Matter fused (-8). 00482_ S-10 Pest destroyed. 00485_ The unstable cave ceiling collapses. Map ----- +----------------------------------------------------+ | ?????????????????????????????????????? | | ?????????????????????????????????????? | | ?????????????????????????????????????? | | ?????????????????????????????????????? | | ?????????????????????????????????????? | | ?????????????????????????????????????? | | ?????????????????????????????????????? | | ?????????????????????????????????????? | | ?????????????????????????????????????? | | ?????????????????????????????????????? | | ???????????##????????????????????????? | | ??????????"""????????????????????????? | | ????????##"Y"######??????????????????? | | ????????# #??????????????????? | | ????????# """ """ #??????????????????? | | ????????# """ """ #??????????????????? | | ????????# """ """ #??????????????????? | | ????????# #??????????????????? | | ????????# ! #??????????????????? | | ????????# #??????????????????? | | ????????? ????????????????????? | | ???????????# ######??????????? #??? | | ?????????### ######### #??? | | ########## #??? | | % / #??? | | #########+ [ @ #??? | | ???# # s #####+######???? | | ???#[ ### #### ??????????????? | | ???# ! #????????# #?????????????? | | ???# #????????# #?????????????? | | ???# #????????# #?????????????? | | ?### #????????# #?????????????? | | ## #####????????# #?????????????? | | # ### """ ?# #?????????????? | | + """ ?#####?????????????? | | ### """ ???????????????????? | | ##????????????????????????????? | | ####????#############????????????? | | #???????? #????????????? | | #????????"" """ """ #????????????? | | #?????????" """ """ ?????????????? | | #???????????""" """ ?????????????? | | #???????????? ??????????????? | | #?????????????? ?#############? | | #################+### ## #? | | ^ ## "#? | | ## T#? | | """ """" ##! "#? | | """ ########## """" ## #? | | """ #????????# """" ## ## | +----------------------------------------------------+ Best States ------------- Heat Dissipation 31 Energy Generation 5 Energy Capacity 100 Matter Stores 300 Matter Capacity 300 Sight Range 20 Terrain Scan Density 110 Evasion (%) 50 Recoil Reduction 2 Item Schematics ----------------- None Robot Schematics ------------------ None Fabricated ------------ Nothing Alien Tech Used ----------------- None Achievements -------------- None Challenges ------------ None Game ------ Seed DisposableTachyonCannon Manual? 0 Play Time 00:16:19 Cumulative 263.8 hours Start 2020.12.16 @ 21:12:46 End 2020.12.16 @ 21:31:54 Sessions 1 Manual Loads 0 Difficulty Rogue Special Mode None Game No. 272 Rogue 272 Adventurer 0 Explorer 0 Win Type - Total 3 Types 3/0/0/0/0/0/0/0/0 Lore% 63 Gallery% 78 Achievement% 60 Wizard Run 0 Options --------- ASCII 0 Keyboard 0 Movement Numpad Keybinds 0 Fullscreen 2 Font 24/Terminus Map View 76x50 Tactical HUD 1 Map Filters NONE Filters NONE Steam 1 RUN: 82aedc9c-cb48-4785-9531-82cd534665a3